bitfinex/quotes_ETHUSD_20260308
["timestamp","ask_amount","ask_price","bid_price","bid_amount"]
[1772961538941,0.47056582,1967.3,1966.7,0.001]
[1772961539536,1.74140762,1967.2,1966.7,0.001]
[1772961542075,1.2708418,1967.2,1966.7,0.47737825]
[1772961544236,1.75892518,1967.2,1966.7,0.47737825]
[1772961544776,1.75892518,1967.2,1966.7,1.7485236]
[1772961545856,1.75892518,1967.2,1966.7,0.47737825]
[1772961546041,0.48808338,1967.1,1966.7,1.27214551]
[1772961546473,1.7590117,1967.1,1966.7,0.001]
[1772961547571,1.27089479,1967.2,1966.7,0.45225552]
[1772961548272,0.002,1967.1,1966.7,0.45225552]
[1772961549473,0.49008338,1967.1,1966.7,0.001]
[1772961551583,1.76101219,1967.1,1966.7,0.001]
[1772961551771,0.48808338,1967.0,1966.7,0.001]
[1772961552362,0.48808338,1967.0,1966.5,0.001]
[1772961553683,0.48808338,1966.8,1966.5,0.001]
[1772961554782,1.27294574,1967.1,1966.5,0.45225552]
[1772961555648,1.76102912,1967.1,1966.5,0.45225552]
[1772961556462,1.76102912,1967.1,1966.5,1.72349777]
[1772961557165,0.48808338,1967.0,1966.5,0.001]
[1772961558358,1.27103563,1966.9,1966.5,0.001]
[1772961558595,1.7591028,1967.0,1966.5,0.001]
[1772961559496,1.7591028,1967.0,1966.5,0.45225552]
[1772961559875,1.75906199,1967.0,1966.5,0.45225552]
[1772961560581,1.75906199,1967.0,1966.5,1.72351255]
[1772961561177,0.48808338,1966.9,1966.5,0.001]
[1772961561561,1.27097861,1967.0,1966.5,1.72353955]
[1772961561984,1.27097861,1967.0,1966.6,0.001]
[1772961562162,1.27297861,1967.0,1966.6,0.001]
[1772961564499,0.002,1967.0,1966.7,0.45125552]
[1772961568200,0.48808338,1966.9,1966.6,0.001]
[1772961568571,0.002,1967.0,1966.6,0.001]
[1772961568766,0.002,1967.0,1966.6,0.45225552]
[1772961568972,1.27297599,1967.0,1966.6,0.45225552]
[1772961570291,0.49008338,1967.0,1966.6,1.72347161]
[1772961572184,0.49008338,1967.0,1966.6,0.001]
[1772961572385,0.48808338,1966.9,1966.6,0.001]
[1772961574071,1.27300399,1967.0,1966.6,0.48829774]
[1772961574293,1.27300399,1967.0,1966.6,0.001]
[1772961574493,1.73403362,1966.9,1966.6,0.001]
[1772961574806,0.46295419,1966.8,1966.6,0.001]
[1772961574980,1.27297171,1967.0,1966.6,0.48829774]
[1772961575175,1.7359259,1967.0,1966.6,0.48829774]
[1772961575375,0.46295419,1966.9,1966.6,0.001]
[1772961577680,0.002,1967.0,1966.6,0.48829774]
[1772961578224,1.73592767,1967.0,1966.6,0.48829774]
[1772961580220,0.46295419,1966.9,1966.6,0.001]
[1772961581716,1.73400536,1966.9,1966.6,0.001]
[1772961584927,0.46295419,1966.8,1966.4,0.001]
[1772961585699,0.56295419,1966.8,1966.4,0.001]
[1772961585999,1.27122953,1966.6,1966.4,0.001]
[1772961586612,1.73418372,1966.6,1966.4,0.001]
[1772961586919,0.46295419,1966.5,1966.4,0.001]
[1772961589729,0.09929999,1966.7,1966.4,0.48829774]
[1772961589891,0.002,1966.9,1966.5,0.48729774]
[1772961590094,0.002,1967.0,1966.5,0.48729774]
[1772961590728,0.002,1967.0,1966.6,1.75852727]
[1772961590903,0.002,1967.0,1966.6,0.48729774]
[1772961591403,0.46495419,1967.0,1966.6,0.48729774]
[1772961591834,0.46495419,1967.0,1966.4,1.75961971]
[1772961592609,1.73398982,1966.9,1966.4,1.75961971]
[1772961592936,0.46295419,1966.8,1966.4,1.75965278]
[1772961594726,0.46295419,1966.7,1966.4,0.001]
[1772961595224,0.46295419,1966.7,1966.3,0.001]
[1772961596932,0.46295419,1966.5,1966.3,0.001]
[1772961597236,0.36628849,1966.4,1965.9,0.48729774]
[1772961597924,0.46295419,1966.3,1965.7,0.48729774]
[1772961598263,0.81590461,1966.2,1965.7,1.75910038]
[1772961598466,1.63579011,1966.7,1965.8,0.48729774]
[1772961598772,0.00353886,1967.0,1965.8,0.48729774]
[1772961598959,0.00353886,1967.0,1966.2,0.48729774]
[1772961599155,0.00353886,1967.0,1966.3,0.48729774]
[1772961599666,0.00353886,1967.0,1966.5,0.48829774]
[1772961599870,0.002,1966.8,1966.5,0.48829774]
[1772961600363,0.46495419,1966.8,1965.9,0.48729774]
[1772961600536,0.46295419,1966.7,1966.2,0.001]
[1772961600742,0.46295419,1966.3,1965.2,0.48829774]
[1772961600937,0.46295419,1966.1,1965.3,0.48729774]
[1772961601871,0.46295419,1966.5,1965.3,0.48729774]
[1772961602072,1.27116639,1966.7,1965.3,0.48729774]
[1772961602269,5.59985642,1966.9,1965.3,0.48729774]
[1772961602270,1.78662016,1966.9,1965.3,0.48729774]
[1772961602436,0.51555418,1966.9,1965.4,0.48729774]
[1772961602642,0.05259999,1966.9,1965.6,0.49798508]
[1772961602854,0.05259999,1966.9,1965.8,0.49798508]
[1772961603141,1e-08,1966.9,1965.8,0.56352108]
[1772961603667,1e-08,1966.9,1966.2,0.49798508]
[1772961604943,1e-08,1966.9,1966.2,0.47813429]
[1772961605142,0.46940214,1966.9,1966.0,1.74968879]
[1772961605568,0.46940214,1966.9,1966.1,0.47813429]
[1772961606469,0.46940214,1966.9,1965.9,0.47813429]
[1772961606676,0.46940214,1966.9,1965.7,0.47813429]
[1772961607185,0.46940213,1966.7,1965.7,1.74990344]
[1772961608494,0.46940213,1966.7,1965.7,1.27176915]
[1772961608693,0.46940213,1966.7,1965.8,0.47813429]
[1772961609393,1.74059199,1966.7,1966.0,0.47813429]
[1772961610054,0.46940213,1966.6,1965.9,1.27168218]
[1772961610690,0.46940213,1966.6,1965.9,1.74981647]
[1772961610892,0.46940213,1966.6,1965.6,5.08748017]
[1772961610893,0.46940213,1966.6,1965.7,0.47813429]
[1772961611394,0.46940213,1966.4,1965.7,0.47813429]
[1772961611595,0.46940213,1966.4,1965.8,0.47813429]
[1772961612257,0.46940213,1966.4,1965.7,1.27180653]
[1772961612799,1.27310844,1966.8,1965.8,0.47813429]
[1772961613813,1.27310844,1966.8,1966.0,0.47813429]
[1772961613814,0.002,1966.8,1966.0,0.47813429]
[1772961615429,0.46940213,1966.7,1965.9,1.27168218]
[1772961615899,0.46940213,1966.7,1965.8,5.56508435]
[1772961615900,1.74063166,1966.6,1965.8,5.56508435]
[1772961616729,1.74063166,1966.6,1965.9,0.47813429]
[1772961617402,1.27121145,1966.7,1965.9,0.47813429]
[1772961617718,0.002,1966.8,1965.9,0.47813429]
[1772961617887,0.002,1966.8,1966.1,0.47813429]
[1772961619920,0.002,1966.8,1966.2,1.27148814]
[1772961620418,0.002,1966.8,1966.3,0.47813429]
[1772961624199,0.002,1966.8,1966.3,1.27137466]
[1772961625130,0.47140213,1966.8,1966.3,1.27137466]
[1772961626526,0.002,1966.8,1966.4,0.47813429]
[1772961628510,0.002,1966.8,1966.5,1.27129417]
[1772961628947,0.47140213,1966.8,1966.1,1.27155282]
[1772961629241,0.002,1966.8,1966.2,0.47813429]
[1772961630533,0.002,1966.8,1966.3,1.27142348]
[1772961630834,0.002,1966.8,1966.3,1.74955777]
[1772961632244,0.002,1966.8,1966.4,0.47813429]
[1772961632618,0.002,1966.8,1966.5,1.27129417]
[1772961636149,0.002,1966.8,1966.4,0.47813429]
[1772961636322,0.002,1966.8,1966.4,1.74949177]
[1772961636520,0.002,1966.8,1966.2,1.2714328]
[1772961636521,0.46483281,1966.8,1966.2,1.2714328]
[1772961636719,0.002,1966.8,1966.3,0.46839923]
[1772961637243,0.002,1966.8,1966.4,1.27135882]
[1772961637449,0.002,1966.8,1966.5,0.001]
[1772961638254,0.002,1966.8,1966.4,1.26720335]
[1772961639347,0.46283281,1966.7,1966.4,0.001]
[1772961639549,0.002,1966.8,1966.4,0.001]
[1772961639921,0.46483281,1966.8,1966.4,0.001]
[1772961640831,0.46483281,1966.8,1966.2,0.001]
[1772961641046,0.46483281,1966.8,1966.2,1.27248445]
[1772961641253,0.46483281,1966.8,1966.2,0.001]
[1772961641648,0.46283281,1966.6,1966.2,0.001]
[1772961643858,1.7340877,1966.6,1966.2,0.001]
[1772961644031,0.46283281,1966.5,1966.2,0.001]
[1772961645456,0.46283281,1966.5,1965.7,0.001]
[1772961645657,0.46283281,1966.5,1965.7,1.27280683]
[1772961645858,0.46283281,1966.3,1965.7,0.001]
[1772961647847,0.46283281,1966.1,1965.7,0.001]
[1772961649664,0.46283281,1966.6,1965.7,0.001]
[1772961650661,0.46283281,1966.4,1965.7,1.27281156]
[1772961651041,0.46283281,1966.4,1965.8,0.46839923]
[1772961651270,0.46283281,1966.4,1965.8,0.46939923]
[1772961652766,0.46283281,1966.4,1965.9,1.74008141]
[1772961653070,0.46283281,1966.3,1965.7,0.001]
[1772961653934,1.27136369,1966.4,1965.4,0.001]
[1772961653935,1.00614102,1966.0,1965.4,0.001]
[1772961654143,0.46283281,1965.7,1965.2,0.001]
[1772961655984,0.46283281,1965.5,1965.2,0.001]
[1772961657979,1.27200569,1965.4,1965.2,0.001]
[1772961658186,1.7348385,1965.4,1965.2,0.001]
[1772961658417,0.46283281,1965.4,1965.2,0.001]
[1772961659049,1.27194205,1965.5,1965.2,0.001]
[1772961659883,1.73477486,1965.5,1965.2,0.001]
[1772961660852,0.46283281,1965.4,1965.2,0.001]
[1772961661072,0.46283281,1965.4,1965.0,0.00253886]
[1772961662796,0.46536988,1965.2,1964.6,0.001]
[1772961663867,0.46536988,1965.2,1965.1,0.001]
[1772961664064,1.32267041,1965.3,1965.1,0.001]
[1772961664603,1.72691882,1966.0,1965.1,0.45345944]
[1772961664896,1.72691882,1966.0,1965.3,0.45245944]
[1772961665566,0.4537262,1965.9,1965.1,1.27315374]
[1772961665912,0.4537262,1965.9,1965.1,0.45345944]
[1772961666096,0.4537262,1965.9,1965.1,1.72565888]
[1772961666990,1.27174687,1965.8,1965.1,1.72565888]
[1772961667204,1.27320415,1966.0,1965.2,0.45245944]
[1772961667495,1.27318148,1966.0,1965.2,0.45245944]
[1772961668401,1.72690768,1966.0,1965.2,0.45245944]
[1772961669702,0.00153886,1966.0,1965.4,0.45245944]
[1772961670398,1.72693711,1966.0,1965.4,0.45245944]
[1772961670602,0.00153886,1966.0,1965.4,0.45245944]
[1772961671603,0.00153886,1966.0,1965.5,1.27194098]
[1772961671808,0.00153886,1966.0,1965.6,0.45245944]
[1772961672915,0.002,1966.2,1965.7,0.45245944]
[1772961673275,1.27349006,1966.2,1965.7,0.45245944]
[1772961674380,0.002,1966.2,1965.9,0.45245944]
[1772961676700,0.002,1966.2,1965.4,0.45245944]
[1772961676701,0.4557262,1966.2,1965.4,0.45245944]
[1772961677208,0.4537262,1966.0,1965.4,0.45245944]
[1772961677596,0.002,1966.1,1965.4,0.45245944]
[1772961677802,0.4557262,1966.1,1965.4,0.45245944]
[1772961679009,0.4537262,1965.9,1965.4,0.45245944]
[1772961679808,0.4537262,1965.9,1965.2,1.72454444]
[1772961680010,0.4537262,1965.9,1965.2,1.272085]
[1772961680410,0.4537262,1965.9,1965.1,0.45345944]
[1772961680601,0.4537262,1965.9,1965.1,0.001]
[1772961680800,0.4537262,1965.9,1965.1,1.27319171]
[1772961681418,0.4537262,1965.7,1965.1,1.72565115]
[1772961681579,1.72547307,1965.8,1965.2,0.45245944]
[1772961682616,3.48,1965.6,1965.2,0.45245944]
[1772961683194,3.9337262,1965.6,1965.1,1.27319171]
[1772961683607,0.4537262,1965.6,1965.1,1.27319171]
[1772961683916,0.4537262,1965.6,1965.1,1.72565115]
[1772961684120,0.4537262,1965.6,1965.1,0.45345944]
[1772961684602,1.7255169,1965.8,1965.1,0.45345944]
[1772961685008,0.4537262,1965.7,1965.1,0.45345944]
[1772961685514,4.27169611,1965.9,1965.1,0.45345944]
[1772961685716,4.27169834,1965.9,1965.3,0.45245944]
[1772961686219,4.72542454,1965.9,1965.3,0.45245944]
[1772961687223,0.4537262,1965.8,1965.3,0.45245944]
[1772961688928,1.72547429,1965.8,1965.4,1.27200569]
[1772961689518,1.72547429,1965.8,1965.3,1.72448561]
[1772961689519,1.72547608,1965.8,1965.3,1.72448561]
[1772961689719,0.4537262,1965.8,1965.3,1.72448561]
[1772961690728,1.72551228,1965.8,1965.3,1.72452432]
[1772961690907,0.4537262,1965.8,1965.3,1.72452432]
[1772961691724,1.72553776,1965.7,1965.2,0.001]
[1772961691924,1.72553776,1965.7,1965.2,2.47208169]
[1772961692333,1.72553776,1965.7,1965.2,2.92454113]
[1772961692635,4.73270921,1965.9,1965.3,0.49353077]
[1772961692801,0.45902426,1965.8,1965.3,0.49353077]
[1772961693237,0.45902426,1965.7,1965.2,2.47208169]
[1772961693726,0.45902426,1965.7,1965.3,0.49353077]
[1772961693931,4.27373371,1965.9,1965.3,0.49353077]
[1772961694128,0.45902426,1965.8,1965.3,0.49353077]
[1772961694832,3.002,1965.9,1965.3,0.49353077]
[1772961695212,3.002,1965.9,1965.5,0.49353077]
[1772961695614,3.46102426,1965.9,1965.5,1.69453077]
[1772961696615,0.45902426,1965.8,1965.3,2.96655097]
[1772961697732,3.002,1965.9,1965.4,0.49353077]
[1772961698937,0.002,1966.1,1965.8,0.49353077]
[1772961699139,0.002,1966.1,1965.3,2.4730202]
[1772961699140,1e-08,1966.5,1966.0,0.49353077]
[1772961699339,1e-08,1966.5,1966.2,0.49353077]
[1772961699637,1e-08,1966.5,1966.3,1.76495425]
[1772961699837,1e-08,1966.5,1966.4,0.49353077]
[1772961700010,0.46102426,1966.9,1966.4,0.49353077]
[1772961700204,1.73206987,1966.9,1966.3,1.27142348]
[1772961700433,1.73206987,1966.9,1966.3,1.76495425]
[1772961701235,0.002,1966.9,1966.4,0.49353077]
[1772961701533,0.002,1966.9,1966.3,1.27142348]
[1772961701534,0.46102426,1966.9,1966.3,1.27142348]
[1772961701837,0.46102426,1966.9,1966.3,1.76495425]
[1772961702341,0.002,1966.4,1966.3,1.76495425]
[1772961702504,0.46102426,1966.9,1966.3,1.76495425]
[1772961702710,0.002,1966.5,1966.3,1.76495425]
[1772961703211,0.002,1966.5,1966.4,1.2]
[1772961703905,0.002,1966.5,1966.4,2.47135882]
[1772961705028,0.002,1966.5,1966.1,0.49353077]
[1772961705339,0.002,1966.5,1966.3,1.201]
[1772961705632,0.002,1966.5,1966.3,1.202]
[1772961706722,0.002,1966.5,1966.0,1.27155573]
[1772961707037,0.002,1966.5,1966.2,1.202]
[1772961707620,0.002,1966.5,1966.0,0.49353077]
[1772961707832,0.46102426,1966.5,1966.0,2.96810228]
[1772961709347,1.73237036,1966.5,1966.0,2.96810228]
[1772961709644,1.73237036,1966.5,1966.0,2.47457151]
[1772961709843,0.45902426,1966.4,1966.0,1.203]
[1772961710141,0.45902426,1966.4,1966.0,2.47461667]
[1772961710339,1.2733461,1966.5,1966.0,2.96814744]
[1772961710544,1.73237036,1966.5,1966.0,1.69653077]
[1772961710744,1.73237036,1966.5,1966.0,2.96814767]
[1772961711326,1.73237036,1966.5,1966.0,1.69653077]
[1772961712025,1.73237036,1966.5,1966.0,2.96814096]
[1772961712643,1.73237036,1966.5,1966.0,1.69653077]
[1772961712829,1.73237036,1966.5,1966.0,2.96814454]
[1772961713025,0.002,1966.5,1966.1,0.49353077]
[1772961713551,0.002,1966.5,1966.2,1.27148814]
[1772961714244,0.002,1966.5,1966.1,1.76503292]
[1772961714443,0.002,1966.5,1966.1,1.76603292]
[1772961714830,0.002,1966.4,1966.1,1.76603292]
[1772961715349,3.002,1966.4,1966.1,1.76603292]
[1772961716438,2.802,1966.4,1966.2,0.49353077]
[1772961717237,0.002,1966.5,1966.2,0.49353077]
[1772961717823,0.002,1966.5,1966.3,1.27142348]
[1772961718027,0.002,1966.5,1966.4,1.204]
[1772961720062,0.46102426,1966.5,1966.2,1.27144849]
[1772961720265,0.002,1966.5,1966.3,1.205]
[1772961722380,0.46102426,1966.5,1966.3,1.205]
[1772961722739,0.46102426,1966.5,1966.1,1.27252238]
[1772961722944,0.46102426,1966.5,1966.2,1.207]
[1772961723252,0.46102426,1966.5,1966.1,1.208]
[1772961723456,0.46102426,1966.5,1966.1,0.001]
[1772961724642,1.72885964,1966.4,1966.1,0.001]
[1772961725667,0.45750082,1966.3,1966.1,0.001]
[1772961727072,0.45750082,1966.2,1966.0,0.001]
[1772961727586,1.27142753,1966.3,1966.0,0.001]
[1772961728363,0.45750082,1966.2,1966.0,0.001]
[1772961728962,0.45750082,1966.3,1966.0,0.001]
[1772961730977,1.27148814,1966.2,1966.0,0.001]
[1772961731478,1.72898896,1966.2,1966.0,0.001]
[1772961731862,1.27148814,1966.2,1966.0,0.001]
[1772961732276,1.27147329,1966.3,1966.0,0.001]
[1772961732565,1.72897411,1966.3,1966.0,0.001]
[1772961732770,1.27147329,1966.3,1966.0,0.001]
[1772961735688,0.45750082,1966.3,1966.0,0.001]
[1772961736685,0.45750082,1966.3,1966.0,0.43070567]
[1772961736887,0.45750082,1966.3,1966.0,0.001]
[1772961737688,1.27148814,1966.2,1966.0,0.001]
[1772961738383,0.002,1966.4,1966.0,0.43070567]
[1772961738787,0.45750082,1966.3,1966.0,0.001]
[1772961739876,1.27148814,1966.2,1966.0,0.001]
[1772961740184,0.5,1966.1,1965.3,1.27306125]
[1772961742062,1.77161749,1966.0,1965.4,0.001]
[1772961742388,0.5,1965.9,1965.4,0.001]
[1772961743188,0.5,1965.9,1965.3,0.001]
[1772961743381,0.5,1965.9,1965.3,0.002]
[1772961743582,0.5,1965.9,1965.3,0.001]
[1772961743766,0.5,1965.9,1965.3,0.002]
[1772961743971,0.5,1965.9,1965.4,0.001]
[1772961744865,0.4995,1965.8,1965.4,0.001]
[1772961745059,0.45750082,1966.1,1965.4,0.001]
[1772961745289,1.72898554,1966.3,1965.4,0.001]
[1772961745790,0.002,1966.4,1965.4,0.001]
[1772961746490,1.27336091,1966.4,1965.4,0.001]
[1772961746873,0.002,1966.4,1965.4,0.001]
[1772961748398,0.45950082,1966.4,1965.4,0.001]
[1772961748766,1.7289243,1966.3,1965.4,0.001]
[1772961748966,0.45750082,1966.2,1965.5,1.65864694]
[1772961749182,0.45750082,1966.2,1965.6,1.201]
[1772961749392,0.45950082,1966.4,1965.7,0.45764694]
[1772961750979,0.45950082,1966.4,1965.8,1.72939381]
[1772961751373,0.45950082,1966.4,1965.9,0.45764694]
[1772961751374,0.002,1966.4,1965.9,0.45764694]
[1772961751992,1.7308634,1966.4,1965.9,0.45764694]
[1772961752186,0.45950082,1966.4,1965.9,1.66064694]
[1772961752784,0.45950082,1966.4,1965.9,0.45764694]
[1772961753091,0.45950082,1966.4,1965.9,1.66164694]
[1772961753303,0.45950082,1966.4,1966.0,1.27161749]
[1772961753605,0.45595092,1966.3,1966.0,0.001]
[1772961753805,0.45795092,1966.3,1966.0,0.001]
[1772961754707,0.45795092,1966.3,1965.9,0.001]
[1772961755400,0.45595092,1966.1,1965.9,0.001]
[1772961757905,1.7293852,1966.3,1965.9,0.001]
[1772961758209,0.45595092,1966.2,1965.9,0.001]
[1772961760394,1.27342628,1966.3,1965.9,0.4560686]
[1772961760713,0.002,1966.3,1965.9,0.4560686]
[1772961762714,0.45795092,1966.3,1965.9,0.4560686]
[1772961762920,0.45795092,1966.3,1965.9,0.001]
[1772961763582,0.45795092,1966.3,1965.9,1.27268122]
[1772961764116,0.45795092,1966.3,1965.9,0.001]
[1772961764288,0.45795092,1966.3,1965.9,1.27267961]
[1772961764688,0.45795092,1966.3,1965.9,0.001]
[1772961764897,1.72938398,1966.3,1965.9,0.001]
[1772961765518,0.45795092,1966.3,1965.9,0.001]
[1772961765719,1.7293751,1966.3,1965.9,0.001]
[1772961766315,0.002,1966.3,1965.9,0.4560686]
[1772961766515,1.72943336,1966.3,1966.0,0.001]
[1772961766815,0.45595092,1966.2,1966.0,0.001]
[1772961768828,1.72750374,1966.1,1966.0,0.001]
[1772961772241,1.72939195,1966.3,1966.0,0.001]
[1772961772425,0.45595092,1966.2,1965.9,0.001]
[1772961775507,1.27155282,1966.1,1965.9,0.001]
[1772961775712,1.72750374,1966.1,1965.9,0.001]
[1772961775907,0.45595092,1966.0,1965.9,0.001]
[1772961777231,0.45595092,1966.0,1965.3,1.72813705]
[1772961777433,0.45595092,1966.0,1965.4,0.4550686]
[1772961777634,0.45595092,1965.8,1965.4,0.4550686]
[1772961777931,0.45595092,1965.8,1965.3,0.4560686]
[1772961778136,0.45595092,1965.8,1965.3,1.72813551]
[1772961778342,0.45595092,1965.8,1965.3,0.4560686]
[1772961778912,0.45595092,1965.8,1965.4,0.4550686]
[1772961779214,0.45595092,1965.8,1965.7,0.001]
[1772961779628,1.72769779,1965.8,1965.7,0.001]
[1772961780629,0.45595092,1965.8,1965.7,0.001]
[1772961781014,1.72769779,1965.8,1965.7,0.001]
[1772961783414,0.45580773,1965.7,1965.3,0.001]
[1772961783830,0.46849218,1965.5,1965.3,0.001]
[1772961784727,0.46849218,1965.5,1965.2,0.001]
[1772961786551,1.74023905,1965.8,1965.2,0.47065002]
[1772961787017,0.46849218,1965.7,1965.2,0.47065002]
[1772961787813,0.46849218,1965.9,1965.2,0.47065002]
[1772961788726,1.27174687,1965.8,1965.2,0.001]
[1772961789043,0.46849218,1965.7,1965.2,0.001]
[1772961790666,0.46849218,1965.7,1965.3,0.001]
[1772961790873,0.47049218,1965.7,1965.3,0.001]
[1772961791164,0.46849218,1965.5,1965.3,0.001]
[1772961792263,0.002,1965.7,1965.3,0.47065002]
[1772961793032,1.27381722,1965.7,1965.3,0.47065002]
[1772961793737,1.7423094,1965.7,1965.3,0.47065002]
[1772961794552,0.46849218,1965.6,1965.3,0.001]
[1772961795334,0.46849218,1965.6,1965.3,1.27306954]
[1772961795727,0.46849218,1965.6,1965.3,0.001]
[1772961796757,0.002,1965.7,1965.3,0.47065002]
[1772961798638,0.002,1965.8,1965.4,0.46965002]
[1772961799463,0.002,1965.8,1965.5,0.46965002]
[1772961801672,0.002,1965.8,1965.6,0.46965002]
[1772961803750,0.002,1965.8,1965.6,1.74149967]
[1772961804153,0.002,1965.7,1965.6,1.74149967]
[1772961804458,0.002,1965.8,1965.6,1.74149967]
[1772961806353,0.002,1966.0,1965.7,0.46965002]
[1772961806766,0.002,1966.1,1965.7,0.46965002]
[1772961809164,0.47049218,1966.1,1965.7,0.46965002]
[1772961809381,0.47049218,1966.1,1965.7,1.74145549]
[1772961811066,0.47049218,1966.1,1965.7,0.46965002]
[1772961811272,0.46849218,1966.0,1965.6,2.47582859]
[1772961811462,0.46849218,1966.0,1965.6,2.94547861]
[1772961811865,0.46849218,1966.0,1965.6,1.67365002]
[1772961812164,0.46849218,1966.0,1965.6,2.94552486]
[1772961813765,1.74011544,1966.0,1965.6,2.94552486]
[1772961814191,0.46849218,1966.0,1965.6,2.94552486]
[1772961816190,0.46849218,1966.0,1965.7,0.46781653]
[1772961816591,0.46849218,1966.0,1965.6,2.94369137]
[1772961816781,0.002,1965.9,1965.6,2.94369137]
[1772961820787,0.002,1966.1,1965.7,0.46781653]
[1772961821172,0.47865052,1966.1,1965.7,0.46781653]
[1772961822179,0.47665052,1966.0,1965.7,0.46781653]
[1772961823263,0.47665052,1965.9,1965.5,0.46781653]
[1772961823468,0.47665052,1965.9,1965.5,1.67781653]
[1772961823880,0.47665052,1965.9,1965.6,0.46781653]
[1772961824079,1.7502489,1966.1,1965.6,0.46781653]
[1772961824794,0.47665052,1966.0,1965.6,0.46781653]
[1772961827096,0.47665052,1966.0,1965.5,1.21]
[1772961827395,0.47665052,1965.9,1965.4,2.95182205]
[1772961827899,0.47665052,1965.9,1965.4,1.74082205]
[1772961828077,0.47665052,1965.9,1965.4,2.95182205]
[1772961828711,0.47665052,1965.9,1965.4,1.67981653]
[1772961828910,0.47665052,1965.9,1965.4,1.74079077]
[1772961829211,0.47665052,1965.8,1965.5,0.46881653]
[1772961829973,0.47665052,1965.8,1965.5,0.001]
[1772961830174,0.47665052,1965.8,1965.5,0.46881653]
[1772961830879,0.002,1965.9,1965.5,0.46881653]
[1772961831133,0.47865052,1965.9,1965.5,0.46881653]
[1772961831500,0.47665052,1965.8,1965.5,1.2729235]
[1772961831875,0.47665052,1965.8,1965.5,1.74074003]
[1772961832096,0.47665052,1965.8,1965.5,0.46881653]
[1772961834097,0.47665052,1965.8,1965.5,0.001]
[1772961834792,0.002,1965.9,1965.6,0.46781653]
[1772961834994,0.47865052,1965.9,1965.6,0.46781653]
[1772961835304,1.75033486,1965.9,1965.6,0.46781653]
[1772961835498,1.75033486,1965.9,1965.4,0.001]
[1772961835499,0.47665052,1965.8,1965.4,0.001]
[1772961835906,0.47665052,1965.8,1965.5,0.46781653]
[1772961836878,0.002,1965.9,1965.6,0.46781653]
[1772961837103,1.27368837,1965.9,1965.6,0.46781653]
[1772961837414,1.75033889,1965.9,1965.6,0.46781653]
[1772961838715,0.47665052,1965.8,1965.5,1.27293471]
[1772961838914,0.47665052,1965.8,1965.4,1.74078057]
[1772961838915,0.47665052,1965.8,1965.6,1.27293471]
[1772961839122,0.47665052,1965.8,1965.5,1.74075124]
[1772961841015,0.47665052,1965.8,1965.5,3.01268485]
[1772961841221,0.47665052,1965.8,1965.5,3.01368485]
[1772961841511,0.47665052,1965.8,1965.5,1.74175124]
[1772961841807,0.47665052,1965.8,1965.6,1.27293471]
[1772961845910,1.74840741,1965.8,1965.6,1.27293471]
[1772961846226,0.47025609,1965.7,1965.6,1.27293471]
[1772961847315,0.47025609,1965.7,1965.5,0.001]
[1772961847485,0.47025609,1965.7,1965.5,1.27393471]
[1772961848312,0.47025609,1965.7,1965.5,0.001]
[1772961849511,0.47025609,1965.7,1965.5,1.27393471]
[1772961852612,0.47025609,1965.7,1965.6,0.001]
[1772961852918,0.47225609,1965.7,1965.6,0.001]
[1772961853500,0.002,1965.7,1965.6,0.001]
[1772961854214,0.002,1965.7,1965.6,1.77178197]
[1772961857417,0.002,1965.7,1965.6,0.001]
[1772961858621,0.47225609,1965.7,1965.6,0.001]
[1772961861609,0.002,1965.7,1965.6,0.49884726]
[1772961861817,0.002,1965.8,1965.7,0.49784726]
[1772961861999,0.002,1965.8,1965.7,1.77078197]
[1772961862317,0.002,1965.8,1965.7,0.49784726]
[1772961862694,0.002,1965.8,1965.6,0.49884726]
[1772961863022,0.002,1965.8,1965.6,1.77178197]
[1772961864317,0.002,1965.8,1965.7,0.49784726]
[1772961864523,0.002,1965.8,1965.7,1.77078197]
[1772961867524,0.002,1965.9,1965.8,0.49784726]
[1772961867727,0.002,1965.9,1965.8,1.77078197]
[1772961868529,0.002,1965.9,1965.8,3.04252884]
[1772961868898,0.002,1965.9,1965.8,1.77078197]
[1772961869098,0.002,1965.9,1965.8,3.04252884]
[1772961870395,0.002,1966.1,1966.0,0.49784726]
[1772961871407,0.002,1966.1,1966.0,3.03839946]
[1772961871598,0.002,1966.3,1966.1,0.49784726]
[1772961871803,0.002,1966.3,1966.2,0.49784726]
[1772961872225,0.002,1966.4,1966.3,0.49784726]
[1772961872552,0.002,1966.4,1966.3,1.76278197]
[1772961872702,0.002,1966.4,1966.3,3.03420545]
[1772961873903,0.002,1966.4,1966.3,2.98378197]
[1772961874106,0.002,1966.4,1966.3,2.48593471]
[1772961875136,0.002,1966.4,1966.3,3.75735819]
[1772961875430,0.10129999,1966.5,1966.4,0.49517781]
[1772961875625,0.10129999,1966.5,1966.4,1.76011252]
[1772961876204,0.002,1966.6,1966.4,1.76011252]
[1772961877136,0.002,1966.6,1966.4,1.76111252]
[1772961878227,0.002,1966.5,1966.4,0.49617781]
[1772961880240,0.002,1966.5,1966.4,0.001]
[1772961881336,0.002,1966.5,1966.4,1.26593471]
[1772961882337,0.4867799,1966.5,1966.4,1.26593471]
[1772961882839,0.002,1966.5,1966.4,1.26593471]
[1772961884543,0.4867799,1966.8,1966.5,0.49517781]
[1772961884735,0.4867799,1966.8,1966.5,1.26493471]
[1772961884930,1.2731548,1966.8,1966.5,1.26493471]
[1772961885131,0.4847799,1966.7,1966.5,1.26493471]
[1772961885317,0.4847799,1966.7,1966.6,1.06493471]
[1772961885511,0.4847799,1966.7,1966.5,1.06493471]
[1772961886621,0.36576919,1966.6,1966.4,0.001]
[1772961886817,0.36576919,1966.6,1966.5,1.06493471]
[1772961889338,0.36776919,1966.8,1966.5,1.06493471]
[1772961889544,0.36776919,1966.8,1966.6,1.06493471]
[1772961889713,0.36776919,1966.8,1966.5,1.06493471]
[1772961890315,0.36776919,1966.8,1966.4,0.49617781]
[1772961890642,0.002,1966.5,1966.4,0.49617781]
[1772961891444,0.002,1966.5,1966.4,1.76753663]
[1772961892243,0.002,1966.5,1966.4,0.49617781]
[1772961893642,0.002,1966.5,1966.4,0.001]